fUSD/lending_fUSD_20241207
["ID","MTS","AMOUNT","RATE_DAILY","PERIOD"]
[344526325,1733536296764,-947.41,0.00010681,2]
[344526326,1733536296774,-500.0,0.00010681,2]
[344526327,1733536296784,-374.54820841,0.00010681,2]
[344526328,1733536296793,-1361.4,0.00010681,2]
[344526329,1733536296803,-500.0,0.00010681,2]
[344526330,1733536296812,-500.0,0.00010681,2]
[344526331,1733536296822,-2140.86,0.00010681,2]
[344526332,1733536296833,-1620.87,0.00010681,2]
[344526333,1733536296843,-500.0,0.00010681,2]
[344526334,1733536296852,-500.0,0.00010681,2]
[344526335,1733536296864,-500.0,0.00010681,2]
[344526336,1733536296874,-500.0,0.00010681,2]
[344526337,1733536296883,-500.0,0.00010681,2]
[344526338,1733536296893,-417.488184,0.00010681,2]
[344526339,1733536296903,-500.0,0.00010681,2]
[344526340,1733536296913,-500.0,0.00010681,2]
[344526341,1733536296922,-1142.43908507,0.00010682,3]
[344526342,1733536296932,-500.0,0.00010682,2]
[344526343,1733536296942,-504.55068799,0.00010682,2]
[344526344,1733536296952,-500.0,0.00010682,2]
[344526345,1733536296961,-500.0,0.00010682,2]
[344526346,1733536296971,-502.96317506,0.00010682,2]
[344526347,1733536296981,-500.0,0.00010682,2]
[344526348,1733536296991,-500.0,0.00010682,2]
[344526349,1733536297001,-500.0,0.00010682,2]
[344526350,1733536297014,-1973.59,0.00010682,2]
[344526351,1733536297023,-919.96,0.00010682,2]
[344526352,1733536297033,-500.0,0.00010682,2]
[344526353,1733536297043,-2028.99,0.00010682,2]
[344526354,1733536297054,-500.0,0.00010682,2]
[344526355,1733536297064,-1957.15,0.00010682,2]
[344526356,1733536297076,-500.0,0.00010682,2]
[344526357,1733536297086,-500.0,0.00010682,2]
[344526358,1733536297099,-1074.67,0.00010682,2]
[344526359,1733536297113,-500.0,0.00010682,2]
[344526360,1733536297124,-500.0,0.00010682,2]
[344526361,1733536297134,-1596.59,0.00010682,2]
[344526362,1733536297145,-500.0,0.00010682,2]
[344526363,1733536297156,-500.0,0.00010682,2]
[344526364,1733536297166,-500.0,0.00010682,2]
[344526365,1733536297176,-534.65,0.00010682,2]
[344526366,1733536297186,-500.0,0.00010682,2]
[344526367,1733536297196,-500.0,0.00010682,2]
[344526368,1733536297206,-500.0,0.00010682,2]
[344526369,1733536297217,-1462.96,0.00010682,2]
[344526370,1733536297227,-500.0,0.00010682,2]
[344526371,1733536297236,-500.0,0.00010682,2]
[344526372,1733536297246,-1361.04,0.00010682,2]
[344526373,1733536297255,-500.0,0.00010682,2]
[344526374,1733536297265,-500.0,0.00010682,2]
[344526375,1733536297274,-500.0,0.00010682,2]
[344526376,1733536297283,-500.0,0.00010682,2]
[344526377,1733536297293,-500.0,0.00010682,2]
[344526378,1733536297303,-500.0,0.00010682,2]
[344526379,1733536297313,-500.0,0.00010682,2]
[344526380,1733536297323,-854.27,0.00010682,2]
[344526381,1733536297332,-500.0,0.00010682,2]
[344526382,1733536297342,-500.0,0.00010682,2]
[344526383,1733536297351,-500.0,0.00010682,2]
[344526384,1733536297365,-952.41,0.00010682,2]
[344526385,1733536297375,-500.0,0.00010682,2]
[344526386,1733536297384,-500.0,0.00010682,2]
[344526387,1733536297394,-500.0,0.00010682,2]
[344526388,1733536297404,-500.0,0.00010682,2]
[344526389,1733536297413,-1923.16,0.00010682,2]
[344526390,1733536297423,-1220.83,0.00010682,2]
[344526391,1733536297432,-500.0,0.00010682,2]
[344526392,1733536297441,-500.0,0.00010682,2]
[344526393,1733536297451,-1173.25,0.00010682,2]
[344526394,1733536297461,-500.0,0.00010682,2]
[344526395,1733536297470,-500.0,0.00010682,2]
[344526396,1733536297480,-500.0,0.00010682,2]
[344526397,1733536297490,-500.0,0.00010682,2]
[344526398,1733536297499,-500.0,0.00010682,2]
[344526399,1733536297508,-1427.49,0.00010682,2]
[344526400,1733536297518,-500.0,0.00010682,2]
[344526401,1733536297527,-1132.29,0.00010682,2]
[344526402,1733536297536,-500.0,0.00010682,2]
[344526403,1733536297546,-500.0,0.00010682,2]
[344526404,1733536297556,-1988.24,0.00010682,2]
[344526405,1733536297566,-2268.55,0.00010682,2]
[344526406,1733536297575,-500.0,0.00010682,2]
[344526407,1733536297584,-500.0,0.00010682,2]
[344526408,1733536297594,-500.0,0.00010682,2]
[344526409,1733536297604,-1649.72,0.00010682,2]
[344526410,1733536297618,-500.0,0.00010682,2]
[344526411,1733536297627,-1204.84,0.00010682,2]
[344526412,1733536297636,-500.0,0.00010682,2]
[344526413,1733536297647,-1419.07,0.00010682,2]
[344526414,1733536297656,-672.22,0.00010682,2]
[344526415,1733536297666,-500.0,0.00010682,2]
[344526416,1733536297675,-500.0,0.00010682,2]
[344526417,1733536297685,-500.0,0.00010682,2]
[344526418,1733536297695,-1429.7,0.00010682,2]
[344526419,1733536297705,-500.0,0.00010682,2]
[344526420,1733536297715,-1164.95,0.00010682,2]
[344526421,1733536297724,-500.0,0.00010682,2]
[344526422,1733536297733,-1139.75,0.00010682,2]
[344526423,1733536297743,-500.0,0.00010682,2]
[344526424,1733536297753,-500.0,0.00010682,2]
[344526425,1733536297762,-512.01623016,0.00010682,2]
[344526426,1733536297771,-500.0,0.00010682,2]
[344526427,1733536297781,-500.0,0.00010682,2]
[344526428,1733536297790,-788.76,0.00010682,2]
[344526429,1733536297799,-874.05,0.00010682,2]
[344526430,1733536297808,-500.0,0.00010682,2]
[344526431,1733536297818,-500.0,0.00010682,2]
[344526432,1733536297827,-500.0,0.00010682,2]
[344526433,1733536297837,-500.0,0.00010682,2]
[344526434,1733536297847,-500.0,0.00010682,2]
[344526435,1733536297857,-2270.59,0.00010682,2]
[344526436,1733536297870,-500.0,0.00010682,2]
[344526437,1733536297880,-821.23,0.00010682,2]
[344526438,1733536297889,-2289.09,0.00010682,2]
[344526439,1733536297899,-500.0,0.00010682,2]
[344526440,1733536297910,-1579.83,0.00010682,2]
[344526441,1733536297920,-500.18300793,0.00010682,2]
[344526442,1733536297930,-500.0,0.00010682,2]
[344526443,1733536297940,-500.0,0.00010682,2]
[344526444,1733536297949,-500.0,0.00010682,2]
[344526445,1733536297959,-500.0,0.00010682,2]
[344526446,1733536297969,-693.82,0.00010682,2]
[344526447,1733536297979,-1496.96,0.00010682,2]
[344526448,1733536297988,-500.0,0.00010682,2]
[344526449,1733536297998,-1337.46,0.00010682,2]
[344526450,1733536298011,-1067.55,0.00010682,2]
[344526451,1733536298020,-500.0,0.00010682,2]
[344526452,1733536298030,-500.0,0.00010682,2]
[344526453,1733536298039,-909.31,0.00010682,2]
[344526454,1733536298049,-500.0,0.00010682,2]
[344526455,1733536298059,-1306.23,0.00010682,2]
[344526456,1733536298068,-500.0,0.00010682,2]
[344526457,1733536298079,-500.0,0.00010682,2]
[344526458,1733536298091,-4172.15,0.00010682,2]
[344526459,1733536298101,-500.0,0.00010682,2]
[344526460,1733536298116,-3682.15,0.00010682,2]
[344526461,1733536298126,-500.0,0.00010682,2]
[344526462,1733536298135,-2451.74,0.00010682,2]
[344526463,1733536298145,-500.0,0.00010682,2]
[344526464,1733536298155,-1388.88,0.00010682,2]
[344526465,1733536298164,-500.0,0.00010682,2]
[344526466,1733536298174,-500.0,0.00010682,2]
[344526467,1733536298183,-625.82926469,0.00010682,2]
[344526468,1733536298193,-807.12,0.00010682,2]
[344526469,1733536298203,-873.88,0.00010682,2]
[344526470,1733536298213,-500.0,0.00010682,2]
[344526471,1733536298222,-12615.43,0.00010682,2]
[344526472,1733536298232,-531.19,0.00010682,2]
[344526473,1733536298241,-1534.76,0.00010682,2]
[344526474,1733536298251,-1375.96,0.00010682,2]
[344526475,1733536298260,-500.23375103,0.00010682,2]
[344526476,1733536298269,-3418.5,0.00010682,2]
[344526477,1733536298279,-3762.16,0.00010682,2]
[344526478,1733536298288,-500.0,0.00010682,2]
[344526479,1733536298297,-1672.75,0.00010682,2]
[344526480,1733536298306,-1386.08,0.00010682,2]
[344526481,1733536298316,-500.0,0.00010682,2]
[344526482,1733536298324,-5487.01,0.00010682,2]
[344526483,1733536298334,-500.0,0.00010682,2]
[344526484,1733536298343,-1319.83,0.00010682,2]
[344526485,1733536298352,-1615.88,0.00010682,2]
[344526486,1733536298365,-500.0,0.00010682,2]
[344526487,1733536298375,-3508.25,0.00010682,2]
[344526488,1733536298384,-1212.79,0.00010682,2]
[344526489,1733536298393,-500.0,0.00010682,2]
[344526490,1733536298403,-3134.44,0.00010682,2]
[344526491,1733536298412,-500.0,0.00010682,2]
[344526492,1733536298421,-1417.37,0.00010682,2]
[344526493,1733536298430,-2607.01,0.00010682,2]
[344526494,1733536298440,-500.0,0.00010682,2]
[344526495,1733536298449,-2314.85,0.00010682,2]
[344526496,1733536298459,-500.0,0.00010682,2]
[344526497,1733536298469,-1066.22,0.00010682,2]
[344526498,1733536298478,-500.0,0.00010682,2]
[344526499,1733536298604,-1855.42,0.00010682,2]
[344526500,1733536298620,-3863.17,0.00010682,2]
[344526501,1733536298630,-2316.43,0.00010682,2]
[344526502,1733536298641,-500.0,0.00010682,2]
[344526503,1733536298652,-1758.84,0.00010682,2]
[344526504,1733536298662,-500.0,0.00010682,2]
[344526505,1733536298672,-500.0,0.00010682,2]
[344526506,1733536298682,-500.0,0.00010682,2]
[344526507,1733536298692,-513.82,0.00010682,2]
[344526508,1733536298701,-500.0,0.00010682,2]
[344526509,1733536298711,-500.0,0.00010682,2]
[344526510,1733536298722,-904.08,0.00010682,2]
[344526511,1733536298732,-500.45235525,0.00010682,2]
[344526512,1733536298742,-500.0,0.00010682,2]
[344526513,1733536298752,-2971.06,0.00010682,2]
[344526514,1733536298761,-500.0,0.00010682,2]
[344526515,1733536298771,-599.66118787,0.00010682,2]
[344526516,1733536298781,-1000.0,0.00010682,2]
[344526517,1733536298791,-607.67,0.00010682,2]
[344526518,1733536298801,-908.45,0.00010682,2]
[344526519,1733536298810,-1000.0,0.00010682,2]
[344526520,1733536298819,-500.0,0.00010682,2]
[344526521,1733536298829,-2730.04,0.00010682,2]
[344526522,1733536298840,-601.7,0.00010682,2]
[344526523,1733536298850,-500.0,0.00010682,2]
[344526524,1733536298860,-500.0,0.00010682,2]
[344526525,1733536298872,-1655.05,0.00010682,2]
[344526526,1733536298881,-1390.17,0.00010682,2]
[344526527,1733536298891,-1410.09,0.00010682,2]
[344526528,1733536298901,-1232.19,0.00010682,2]
[344526529,1733536298910,-668.26,0.00010682,2]
[344526530,1733536298920,-1273.21,0.00010682,2]
[344526531,1733536298930,-500.0,0.00010682,2]
[344526532,1733536298940,-500.0,0.00010682,2]
[344526533,1733536298950,-3636.84,0.00010682,2]
[344526534,1733536298959,-2436.97,0.00010682,2]
[344526535,1733536298970,-500.0,0.00010682,2]
[344526536,1733536298980,-500.0,0.00010683,2]
[344526537,1733536298990,-500.0,0.00010683,2]
[344526538,1733536299000,-500.0,0.00010683,2]
[344526539,1733536299013,-500.0,0.00010683,2]
[344526540,1733536299023,-500.0,0.00010683,2]
[344526541,1733536299033,-500.0,0.00010683,2]
[344526542,1733536299043,-453.98628491,0.00010683,2]
[344526543,1733536299052,-500.0,0.00010683,2]
[344526544,1733536299061,-500.0,0.00010683,2]
[344526545,1733536299071,-1010.16,0.00010683,2]
[344526546,1733536299081,-500.0,0.00010683,2]
[344526547,1733536299091,-500.0,0.00010683,2]
[344526548,1733536299100,-500.0,0.00010683,2]
[344526549,1733536299112,-500.0,0.00010683,2]
[344526550,1733536299121,-500.0,0.00010683,2]
[344526551,1733536299131,-500.0,0.00010683,2]
[344526552,1733536299141,-500.0,0.00010683,2]
[344526553,1733536299150,-605.55,0.00010683,2]
[344526554,1733536299159,-500.0,0.00010683,2]
[344526555,1733536299169,-500.0,0.00010683,2]
[344526556,1733536299178,-500.0,0.00010683,2]
[344526557,1733536299187,-500.0,0.00010683,2]
[344526558,1733536299194,-500.0,0.00010683,2]
[344526559,1733536299203,-500.0,0.00010683,2]
[344526560,1733536299213,-500.0,0.00010683,2]
[344526561,1733536299221,-500.0,0.00010683,2]
[344526562,1733536299231,-500.0,0.00010683,2]
[344526563,1733536299239,-500.0,0.00010683,2]
[344526564,1733536299248,-500.0,0.00010683,2]
[344526565,1733536299257,-500.0,0.00010683,2]
[344526566,1733536299266,-500.0,0.00010683,2]
[344526567,1733536299275,-502.2028245,0.00010683,2]
[344526568,1733536299284,-500.0,0.00010683,2]
[344526569,1733536299294,-500.0,0.00010683,2]
[344526570,1733536299303,-500.0,0.00010683,2]
[344526571,1733536299312,-500.0,0.00010683,2]
[344526572,1733536299321,-500.0,0.00010683,2]
[344526573,1733536299330,-500.0,0.00010683,2]
[344526574,1733536299339,-500.0,0.00010683,2]
[344526575,1733536299348,-500.0,0.00010683,2]
[344526576,1733536299358,-500.0,0.00010683,2]
[344526577,1733536299370,-500.0,0.00010683,2]
[344526578,1733536299380,-1189.5,0.00010683,2]
[344526579,1733536299390,-500.0,0.00010683,2]
[344526580,1733536299400,-500.0,0.00010683,2]
[344526581,1733536299409,-500.0,0.00010683,2]
[344526582,1733536299418,-691.44,0.00010683,2]
[344526583,1733536299428,-500.0,0.00010683,2]
[344526584,1733536299447,-593.21,0.00010683,2]
[344526585,1733536299459,-500.0,0.00010683,2]
[344526586,1733536299468,-460.10899184,0.00010683,2]
[344526587,1733536299478,-500.0,0.00010683,2]
[344526588,1733536299487,-500.0,0.00010683,2]
[344526589,1733536299497,-575.21,0.00010683,2]
[344526590,1733536299506,-760.02,0.00010683,2]
[344526591,1733536299516,-997.85,0.00010683,2]
[344526592,1733536299525,-500.0,0.00010683,2]
[344526593,1733536299535,-500.0,0.00010683,2]
[344526594,1733536299544,-569.15,0.00010683,2]
[344526595,1733536299554,-1576.42,0.00010683,2]
[344526596,1733536299564,-968.36,0.00010683,2]
[344526597,1733536299574,-649.06,0.00010683,2]
[344526598,1733536299583,-1164.89,0.00010683,2]
[344526599,1733536299593,-500.0,0.00010683,2]
[344526600,1733536299604,-500.0,0.00010683,2]
[344526601,1733536299616,-500.0,0.00010683,2]
[344526602,1733536299625,-500.0,0.00010683,2]
[344526603,1733536299635,-500.0,0.00010683,2]
[344526604,1733536299645,-500.0,0.00010683,2]
[344526605,1733536299655,-1156.26,0.00010683,2]
[344526606,1733536299665,-500.0,0.00010683,2]
[344526607,1733536299674,-602.11,0.00010683,2]
[344526608,1733536299684,-500.0,0.00010683,2]
[344526609,1733536299693,-500.0,0.00010683,2]
[344526610,1733536299704,-500.0,0.00010683,2]
[344526611,1733536299714,-1076.61,0.00010683,2]
[344526612,1733536299723,-500.0,0.00010683,2]
[344526613,1733536299733,-973.36,0.00010683,2]
[344526614,1733536299743,-500.0,0.00010683,2]
[344526615,1733536299753,-306.56280927,0.00010683,2]
[344526616,1733536299763,-500.0,0.00010683,2]
[344526617,1733536299773,-700.55,0.00010683,2]
[344526618,1733536299782,-667.19,0.00010683,2]
[344526619,1733536299792,-500.0,0.00010683,2]
[344526620,1733536299802,-500.0,0.00010683,2]
[344526621,1733536299812,-920.45,0.00010683,2]
[344526622,1733536299822,-500.0,0.00010683,2]
[344526623,1733536299831,-500.0,0.00010683,2]
[344526624,1733536299841,-1231.3,0.00010683,2]
[344526625,1733536299851,-901.24,0.00010683,2]
[344526626,1733536299860,-2088.05,0.00010683,2]
[344526627,1733536299873,-600.34,0.00010683,2]
[344526628,1733536299884,-993.78,0.00010683,2]
[344526629,1733536299893,-1450.85,0.00010683,2]
[344526630,1733536299903,-573.52,0.00010683,2]
[344526631,1733536299913,-1382.36,0.00010683,2]
[344526632,1733536299922,-516.23,0.00010683,2]
[344526633,1733536299932,-1010.6,0.00010683,2]
[344526634,1733536299942,-500.0,0.00010683,2]
[344526635,1733536299952,-500.0,0.00010683,2]
[344526636,1733536299961,-1088.16,0.00010683,2]
[344526637,1733536299971,-583.14,0.00010683,2]
[344526638,1733536299981,-500.0,0.00010683,2]
[344526639,1733536299990,-500.0,0.00010683,2]
[344526640,1733536300000,-500.0,0.00010683,2]
[344526641,1733536300012,-500.0,0.00010683,2]
[344526642,1733536300022,-500.0,0.00010683,2]
[344526643,1733536300032,-1163.95,0.00010683,2]
[344526644,1733536300042,-500.0,0.00010683,2]
[344526645,1733536300052,-1200.64,0.00010683,2]
[344526646,1733536300061,-500.0,0.00010683,2]
[344526647,1733536300071,-500.0,0.00010683,2]
[344526648,1733536300081,-758.44,0.00010683,2]
[344526649,1733536300094,-2130.51,0.00010683,2]
[344526650,1733536300104,-510.63196627,0.00010683,2]
[344526651,1733536300115,-639.62,0.00010683,2]
[344526652,1733536300125,-500.0,0.00010683,2]
[344526653,1733536300136,-500.0,0.00010683,2]
[344526654,1733536300146,-500.0,0.00010683,2]
[344526655,1733536300156,-500.0,0.00010683,2]
[344526656,1733536300167,-541.83,0.00010683,2]
[344526657,1733536300176,-500.0,0.00010683,2]
[344526658,1733536300186,-500.0,0.00010683,2]
[344526659,1733536300196,-735.14,0.00010683,2]
[344526660,1733536300205,-500.0,0.00010683,2]
[344526661,1733536300215,-500.0,0.00010683,2]
[344526662,1733536300225,-500.0,0.00010683,2]
[344526663,1733536300235,-504.65672534,0.00010683,2]
[344526664,1733536300244,-1954.45,0.00010683,2]
[344526665,1733536300253,-782.84,0.00010683,2]
[344526666,1733536300263,-500.0,0.00010683,2]
[344526667,1733536300273,-500.0,0.00010683,2]
[344526668,1733536300282,-503.74,0.00010683,2]
[344526669,1733536300292,-2507.35,0.00010683,2]
[344526670,1733536300302,-421.91464385,0.00010683,2]
[344526671,1733536300311,-500.0,0.00010683,2]
[344526672,1733536300320,-500.0,0.00010683,2]
[344526673,1733536300330,-500.0,0.00010683,2]
[344526674,1733536300339,-500.0,0.00010683,2]
[344526675,1733536300349,-500.0,0.00010683,2]
[344526676,1733536300358,-500.0,0.00010683,2]
[344526677,1733536300371,-500.0,0.00010683,2]
[344526678,1733536300381,-1670.54,0.00010683,2]
[344526679,1733536300391,-500.0,0.00010683,2]
[344526680,1733536300400,-500.0,0.00010683,2]
[344526681,1733536300409,-500.0,0.00010683,2]
[344526682,1733536300418,-3627.1,0.00010683,2]
[344526683,1733536300428,-500.0,0.00010683,2]
[344526684,1733536300437,-502.98713141,0.00010683,2]
[344526685,1733536300447,-637.28,0.00010683,2]
[344526686,1733536300456,-2426.48,0.00010683,2]
[344526687,1733536300466,-500.0,0.00010683,2]
[344526688,1733536300475,-835.68,0.00010683,2]
[344526689,1733536300485,-500.0,0.00010683,2]
[344526690,1733536300494,-500.0,0.00010683,2]
[344526691,1733536300504,-500.0,0.00010683,2]
[344526692,1733536300513,-500.0,0.00010683,2]
[344526693,1733536300523,-500.0,0.00010683,2]
[344526694,1733536300532,-628.51,0.00010683,2]
[344526695,1733536300542,-500.0,0.00010683,2]
[344526696,1733536300917,-553.52,0.00010683,2]
[344526697,1733536300930,-500.0,0.00010683,2]
[344526698,1733536300940,-1240.03,0.00010683,2]
[344526699,1733536300950,-500.0,0.00010683,2]
[344526700,1733536300960,-179.97886187,0.00010683,2]
[344526701,1733536300970,-1044.07,0.00010683,2]
[344526702,1733536300980,-1404.78,0.00010683,2]
[344526703,1733536300990,-500.0,0.00010683,2]
[344526704,1733536301000,-500.0,0.00010683,2]
[344526705,1733536301015,-1794.48,0.00010683,2]
[344526706,1733536301024,-1613.0,0.00010683,2]
[344526707,1733536301034,-500.0,0.00010683,2]
[344526708,1733536301044,-500.0,0.00010683,2]
[344526709,1733536301053,-762.01,0.00010683,2]
[344526710,1733536301063,-500.0,0.00010683,2]
[344526711,1733536301073,-1379.89,0.00010683,2]
[344526712,1733536301083,-501.81258235,0.00010683,2]
[344526713,1733536301093,-456.91310014,0.00010683,2]
[344526714,1733536301103,-1019.21,0.00010683,2]
[344526715,1733536301113,-500.0,0.00010683,2]
[344526716,1733536301124,-1651.01,0.00010683,2]
[344526717,1733536301134,-500.0,0.00010683,2]
[344526718,1733536301144,-744.38,0.00010683,2]
[344526719,1733536301154,-500.0,0.00010683,2]
[344526720,1733536301164,-1915.65,0.00010683,2]
[344526721,1733536301174,-834.64,0.00010683,2]
[344526722,1733536301185,-966.56,0.00010683,2]
[344526723,1733536301194,-500.0,0.00010683,2]
[344526724,1733536301204,-500.0,0.00010683,2]
[344526725,1733536301214,-500.0,0.00010683,2]
[344526726,1733536301223,-500.0,0.00010683,2]
[344526727,1733536301233,-500.0,0.00010683,2]
[344526728,1733536301243,-587.04049128,0.00010683,2]
[344526729,1733536301253,-191.53945016,0.00010683,2]
[344526730,1733536301263,-500.0,0.00010683,2]
[344526731,1733536301272,-1214.3,0.00010683,2]
[344526732,1733536301282,-705.76,0.00010683,2]
[344526733,1733536301292,-533.65,0.00010683,2]
[344526734,1733536301302,-500.0,0.00010683,2]
[344526735,1733536301312,-500.0,0.00010683,2]
[344526736,1733536301321,-500.0,0.00010683,2]
[344526737,1733536301331,-500.0,0.00010683,2]
[344526738,1733536301340,-500.0,0.00010683,2]
[344526739,1733536301350,-500.0,0.00010683,2]
[344526740,1733536301360,-1406.31,0.00010683,2]
[344526741,1733536301372,-594.92,0.00010683,2]
[344526742,1733536301382,-500.0,0.00010683,2]
[344526743,1733536301392,-500.0,0.00010683,2]
[344526744,1733536301402,-2050.62,0.00010683,2]
[344526745,1733536301411,-500.0,0.00010683,2]
[344526746,1733536301421,-500.0,0.00010683,2]
[344526747,1733536301431,-524.61,0.00010683,2]
[344526748,1733536301441,-708.93,0.00010683,2]
[344526749,1733536301451,-1573.14,0.00010683,2]
[344526750,1733536301465,-644.61,0.00010683,2]
[344526751,1733536301474,-828.88,0.00010683,2]
[344526752,1733536301484,-500.0,0.00010683,2]
[344526753,1733536301493,-500.0,0.00010683,2]
[344526754,1733536301503,-500.0,0.00010683,2]
[344526755,1733536301512,-500.0,0.00010683,2]
[344526756,1733536301522,-538.08451401,0.00010683,2]
[344526757,1733536301532,-591.34,0.00010683,2]
[344526758,1733536301542,-500.0,0.00010683,2]
[344526759,1733536301552,-500.0,0.00010683,2]
[344526760,1733536301561,-962.21,0.00010683,2]
[344526761,1733536301571,-500.0,0.00010683,2]
[344526762,1733536301580,-500.0,0.00010683,2]
[344526763,1733536301590,-500.0,0.00010683,2]
[344526764,1733536301600,-500.0,0.00010683,2]
[344526765,1733536301609,-500.0,0.00010683,2]
[344526766,1733536301630,-727.36,0.00010683,2]
[344526767,1733536301639,-500.0,0.00010683,2]
[344526768,1733536301649,-375.57941393,0.00010683,2]
[344526769,1733536301660,-500.0,0.00010683,2]
[344526770,1733536301670,-500.0,0.00010683,2]
[344526771,1733536301679,-1695.75,0.00010683,2]
[344526772,1733536301688,-500.0,0.00010683,2]
[344526773,1733536301698,-500.0,0.00010683,2]
[344526774,1733536301708,-500.0,0.00010683,2]
[344526775,1733536301719,-500.0,0.00010683,2]
[344526776,1733536301728,-500.0,0.00010683,2]
[344526777,1733536301738,-500.0,0.00010683,2]
[344526778,1733536301747,-807.12,0.00010683,2]
[344526779,1733536301757,-500.0,0.00010683,2]
[344526780,1733536301766,-1094.72,0.00010683,2]
[344526781,1733536301777,-500.0,0.00010683,2]
[344526782,1733536301787,-630.15969881,0.00010683,2]
[344526783,1733536301797,-500.0,0.00010683,2]
[344526784,1733536301807,-500.0,0.00010683,2]
[344526785,1733536301818,-500.0,0.00010683,2]
[344526786,1733536301827,-1072.02,0.00010683,2]
[344526787,1733536301838,-9961.93,0.00010683,2]
[344526788,1733536301849,-2541.91,0.00010683,2]
[344526789,1733536301860,-1111.7,0.00010683,2]
[344526790,1733536301891,-883.19,0.00010683,2]
[344526791,1733536301902,-654.68,0.00010683,2]
[344526792,1733536301914,-500.0,0.00010683,2]
[344526793,1733536301926,-652.62,0.00010683,2]
[344526794,1733536301937,-897.52,0.00010683,2]
[344526795,1733536301947,-1954.67,0.00010683,2]
[344526796,1733536301958,-1297.46,0.00010683,2]
[344526797,1733536301969,-500.0,0.00010683,2]
[344526798,1733536301980,-2400.98,0.00010683,2]
[344526799,1733536301991,-500.0,0.00010683,2]
[344526800,1733536302002,-1492.09,0.00010683,2]
[344526801,1733536302017,-500.0,0.00010683,2]
[344526802,1733536302027,-1153.18,0.00010683,2]
[344526803,1733536302038,-3028.83,0.00010683,2]
[344526804,1733536302048,-500.0,0.00010683,2]
[344526805,1733536302058,-500.0,0.00010683,2]
[344526806,1733536302068,-500.0,0.00010683,2]
[344526807,1733536302078,-1407.02,0.00010683,2]
[344526808,1733536302089,-620.79,0.00010683,2]
[344526809,1733536302099,-566.85,0.00010683,2]
[344526810,1733536302109,-10531.06,0.00010683,2]
[344526811,1733536302123,-500.0,0.00010683,2]
[344526812,1733536302134,-500.0,0.00010683,2]
[344526813,1733536302144,-500.0,0.00010683,2]
[344526814,1733536302154,-1426.66,0.00010683,2]
[344526815,1733536302164,-2365.74,0.00010683,2]
[344526816,1733536302175,-998.54,0.00010683,2]
[344526817,1733536302185,-500.0,0.00010683,2]
[344526818,1733536302196,-2446.0,0.00010683,2]
[344526819,1733536302205,-500.0,0.00010683,2]
[344526820,1733536302216,-1369.81,0.00010683,2]
[344526821,1733536302225,-934.38,0.00010683,2]
[344526822,1733536302235,-500.0,0.00010683,2]
[344526823,1733536302245,-504.79938091,0.00010683,2]
[344526824,1733536302255,-500.0,0.00010683,2]